bitfinex-derivatives/quotes_SOLF0:USTF0_20250307
["timestamp","ask_amount","ask_price","bid_price","bid_amount"]
[1741367299308,38.95214579,141.91,141.79,38.95214579]
[1741367299521,7.0489,141.87,141.79,38.95214579]
[1741367299709,0.04935454,141.84,141.79,38.95214579]
[1741367299911,0.04935454,141.84,141.82,38.95214579]
[1741367300116,0.04935454,141.84,141.82,36.66]
[1741367300413,0.04935454,141.84,141.79,38.95214579]
[1741367301002,0.04935454,141.84,141.76,211.6]
[1741367301710,36.70935454,141.84,141.76,211.6]
[1741367303315,36.70935454,141.84,141.77,38.95214579]
[1741367303709,36.70935454,141.84,141.74,270.42444579]
[1741367303910,36.66,141.84,141.74,38.95214579]
[1741367304114,0.05025408,141.8,141.74,38.95214579]
[1741367304614,0.05025408,141.8,141.74,46.00694579]
[1741367304815,0.05025408,141.8,141.74,38.95214579]
[1741367305216,0.05025408,141.8,141.75,7.0542]
[1741367305417,0.00088739,141.8,141.77,38.95214579]
[1741367305619,38.6063,141.88,141.77,38.95214579]
[1741367306611,0.05100627,141.84,141.81,0.05306484]
[1741367306918,7.0511,141.82,141.81,6.484e-05]
[1741367307113,2.015,141.83,141.7,211.6]
[1741367307615,38.655,141.83,141.74,38.95214579]
[1741367307820,1.9463,141.88,141.74,38.95214579]
[1741367308015,7.051,141.83,141.76,7.0539]
[1741367308212,0.04983522,141.82,141.76,7.0539]
[1741367308413,0.04983522,141.82,141.77,38.95214579]
[1741367309116,36.64,141.87,141.8,38.95214579]
[1741367309309,2.0221,141.89,141.8,38.95214579]
[1741367309717,2.0221,141.89,141.82,7.0507]
[1741367310107,2.0221,141.89,141.79,215.4401]
[1741367310312,0.04986712,141.87,141.84,0.05307301]
[1741367310519,0.04986712,141.87,141.84,7.301e-05]
[1741367310818,7.0495,141.85,141.84,7.301e-05]
[1741367311316,10.5695,141.85,141.84,7.301e-05]
[1741367311920,7.0495,141.85,141.84,7.301e-05]
[1741367313123,10.5695,141.85,141.84,7.301e-05]
[1741367313326,7.0495,141.85,141.84,7.301e-05]
[1741367314030,10.5695,141.85,141.84,7.301e-05]
[1741367314423,7.0495,141.85,141.84,7.301e-05]
[1741367314830,10.5695,141.85,141.84,7.301e-05]
[1741367315025,3.52,141.85,141.73,211.6]
[1741367315330,14.0989,141.86,141.73,211.6]
[1741367315522,40.84854579,141.85,141.73,211.6]
[1741367316123,1.8964,141.85,141.73,250.55214579]
[1741367316319,0.05097372,141.8,141.73,250.55214579]
[1741367316524,0.05097372,141.8,141.73,257.60744579]
[1741367316830,0.05097372,141.8,141.73,211.6]
[1741367317031,0.05097372,141.8,141.71,1.9771]
[1741367317229,38.95214579,141.77,141.66,1.9909]
[1741367317427,36.64,141.76,141.66,1.9909]
[1741367317634,36.64,141.76,141.62,3.9285]
[1741367317936,0.04587765,141.72,141.62,3.9285]
[1741367318135,38.5364,141.76,141.62,3.9285]
[1741367318136,36.62,141.71,141.62,3.9285]
[1741367318329,0.04986682,141.68,141.62,3.9285]
[1741367319927,36.64,141.78,141.66,38.95214579]
[1741367320341,75.59214579,141.78,141.66,38.95214579]
[1741367320533,75.59214579,141.78,141.67,7.0584]
[1741367320732,75.59214579,141.78,141.66,38.95214579]
[1741367321035,0.04978996,141.73,141.71,0.05217785]
[1741367321236,36.64,141.73,141.71,0.05217785]
[1741367321433,36.68597337,141.73,141.71,0.05217785]
[1741367322147,7.056,141.72,141.71,0.05217785]
[1741367322348,36.68597337,141.73,141.71,0.05217785]
[1741367322550,36.68597337,141.73,141.72,38.95214579]
[1741367322551,0.04597337,141.73,141.72,38.95214579]
[1741367322739,112.30105361,141.82,141.76,7.0538]
[1741367323249,7.052,141.8,141.76,7.0538]
[1741367323448,112.30105361,141.82,141.78,7.0529]
[1741367323650,75.66105361,141.82,141.75,38.95214579]
[1741367323851,0.05071177,141.81,141.79,0.05083857]
[1741367325346,36.62,141.87,141.79,0.05083857]
[1741367325745,38.6323,141.9,141.84,7.0499]
[1741367325948,7.0493,141.86,141.81,38.95214579]
[1741367326339,38.6323,141.9,141.82,7.0509]
[1741367326540,0.05313159,141.85,141.82,7.10170878]
[1741367326744,0.05313159,141.85,141.82,0.05080878]
[1741367327152,7.0505,141.84,141.82,0.05080878]
[1741367327347,0.05313159,141.85,141.82,0.05080878]
[1741367327554,36.67313159,141.85,141.82,0.05080878]
[1741367327751,7.0505,141.83,141.82,0.05080878]
[1741367327955,7.0505,141.83,141.82,8.78e-06]
[1741367328954,7.05,141.84,141.82,8.78e-06]
[1741367329252,0.05313159,141.85,141.82,8.78e-06]
[1741367330256,7.0505,141.83,141.82,8.78e-06]
[1741367331053,10.5705,141.83,141.82,8.78e-06]
[1741367331549,3.52,141.83,141.69,211.7]
[1741367331751,42.4179,141.82,141.71,40.95104579]
[1741367331952,36.6,141.81,141.71,40.95104579]
[1741367332150,75.55214579,141.81,141.69,211.7]
[1741367332353,75.55214579,141.81,141.69,7.0575]
[1741367332543,75.55214579,141.81,141.66,40.81014579]
[1741367332751,0.0502109,141.76,141.74,1.399e-05]
[1741367332955,36.6,141.75,141.63,1.8563]
[1741367333151,7.0566,141.71,141.63,1.8563]
[1741367333358,1.856,141.74,141.65,38.95214579]
[1741367333557,36.6,141.75,141.68,7.0575]
[1741367333758,36.6,141.75,141.66,1.8453]
[1741367334059,0.04951919,141.73,141.7,0.04495555]
[1741367334258,38.456,141.81,141.71,38.95214579]
[1741367334555,36.6,141.81,141.74,38.95214579]
[1741367334758,7.0524,141.8,141.74,38.95214579]
[1741367334959,36.6,141.81,141.74,38.95214579]
[1741367335361,0.04895234,141.79,141.76,0.05232777]
[1741367335655,0.04895234,141.79,141.78,7.053]
[1741367336059,38.456,141.85,141.77,38.95214579]
[1741367336250,38.456,141.85,141.75,1.8533]
[1741367336453,7.0502,141.84,141.75,1.8533]
[1741367336656,36.6,141.85,141.76,1.9327]
[1741367336856,36.6,141.85,141.79,7.0521]
[1741367337057,36.6,141.85,141.81,0.05338089]
[1741367337255,0.05004531,141.83,141.81,0.05338089]
[1741367337963,7.051,141.82,141.81,0.05338089]
[1741367338662,0.05004531,141.83,141.81,0.05338089]
[1741367339066,7.051,141.82,141.81,0.05338089]
[1741367339265,0.05004531,141.83,141.81,0.05338089]
[1741367340156,7.0482,141.88,141.81,0.05338089]
[1741367340366,40.4738,141.92,141.83,38.95214579]
[1741367340864,38.513,141.92,141.83,38.95214579]
[1741367341265,0.05313831,141.89,141.86,0.0521887]
[1741367341567,7.0485,141.88,141.86,0.0521887]
[1741367341863,0.05313831,141.89,141.86,0.0521887]
[1741367342064,36.58,141.88,141.77,40.96464579]
[1741367342362,38.95214579,141.87,141.76,1.9327]
[1741367342561,40.89614579,141.87,141.76,1.9327]
[1741367343154,0.04572121,141.83,141.8,0.04854617]
[1741367343357,36.60572121,141.83,141.8,0.04854617]
[1741367343568,7.0515,141.81,141.8,0.04854617]
[1741367345372,7.0515,141.81,141.8,4.617e-05]
[1741367346564,10.5715,141.81,141.8,4.617e-05]
[1741367346873,49.52364579,141.81,141.8,4.617e-05]
[1741367347367,44.47534579,141.81,141.65,51.82774579]
[1741367347561,38.95214579,141.8,141.65,44.76864579]
[1741367348069,38.95214579,141.8,141.68,38.95214579]
[1741367348260,7.0564,141.72,141.71,0.04605995]
[1741367348565,36.56,141.76,141.68,38.95214579]
[1741367348766,0.04580091,141.73,141.7,0.04994461]
[1741367349568,0.04580091,141.73,141.72,7.056]
[1741367349761,0.04580091,141.73,141.7,0.04994461]
[1741367349964,0.04580091,141.73,141.72,7.056]
[1741367350462,0.04580091,141.73,141.7,0.04994461]
[1741367351170,2.0032,141.81,141.7,39.0020904]
[1741367351468,7.0518,141.81,141.73,38.95214579]
[1741367351669,38.5606,141.82,141.73,38.95214579]
[1741367352269,38.5606,141.82,141.7,38.95214579]
[1741367352469,7.053,141.78,141.76,0.05128571]
[1741367352670,0.04647387,141.79,141.76,0.05128571]
[1741367354173,7.0535,141.77,141.76,0.05128571]
[1741367355272,7.0535,141.77,141.76,8.571e-05]
[1741367355673,11.0797,141.77,141.76,8.571e-05]
[1741367356270,14.5997,141.77,141.76,8.571e-05]
[1741367358378,11.0797,141.77,141.76,8.571e-05]
[1741367360181,14.5997,141.77,141.76,8.571e-05]
[1741367363068,14.1106,141.74,141.58,5.54]
[1741367363376,38.95214579,141.71,141.58,5.54]
[1741367363577,38.4809,141.7,141.58,5.54]
[1741367363973,1.9746,141.69,141.58,5.54]
[1741367364279,0.04768897,141.65,141.62,0.04705241]
[1741367364477,36.58768897,141.65,141.62,0.04705241]
[1741367365381,7.0609,141.63,141.62,0.04705241]
[1741367366181,7.0605,141.63,141.62,0.04705241]
[1741367366783,36.58768897,141.65,141.62,0.04705241]
[1741367366982,0.04768897,141.65,141.62,0.04705241]
[1741367367782,0.04768897,141.65,141.64,7.06]
[1741367367984,7.0582,141.68,141.63,38.95214579]
[1741367368184,36.54,141.69,141.63,38.95214579]
[1741367369084,0.04738019,141.67,141.63,38.95214579]
[1741367369281,0.04738019,141.67,141.64,7.0596]
[1741367369582,7.10843433,141.66,141.64,0.0508123]
[1741367369778,36.54,141.72,141.64,0.0508123]
[1741367369979,0.04672408,141.66,141.64,0.0508123]
[1741367370184,36.54,141.71,141.63,38.95214579]
[1741367370385,0.05057456,141.66,141.64,0.05203806]
[1741367370684,36.52,141.73,141.64,0.05203806]
[1741367370884,36.52,141.73,141.65,7.0592]
[1741367371274,7.057,141.7,141.63,38.95214579]
[1741367371481,36.52,141.73,141.67,7.0581]
[1741367371784,0.05283102,141.68,141.65,0.04647519]
[1741367371982,0.05088654,141.68,141.67,7.0582]
[1741367372384,0.05088654,141.68,141.65,0.05060509]
[1741367372385,36.57088654,141.68,141.65,0.05060509]
[1741367372986,7.059,141.66,141.65,0.05060509]
[1741367373574,36.57088654,141.68,141.65,0.05060509]
[1741367373885,0.05088654,141.68,141.65,0.05060509]
[1741367374078,7.10928654,141.68,141.65,0.05060509]
[1741367374278,0.05088654,141.68,141.65,0.05060509]
[1741367374680,7.0588,141.67,141.65,0.05060509]
[1741367374983,0.05088654,141.68,141.65,0.05060509]
[1741367375486,7.059,141.66,141.65,5.09e-06]
[1741367381284,36.52,141.67,141.65,5.09e-06]
[1741367381493,0.05088654,141.68,141.65,7.05900509]
[1741367381690,0.05088654,141.68,141.65,5.09e-06]
[1741367382691,0.05088654,141.68,141.67,7.0585]
[1741367383185,0.05088654,141.68,141.66,7.0587]
[1741367383394,0.05088654,141.68,141.65,5.09e-06]
[1741367383789,0.05088654,141.68,141.67,7.0585]
[1741367385592,7.0552,141.74,141.71,7.0564]
[1741367385990,36.52,141.77,141.66,28.1584498]
[1741367386293,1.8829,141.78,141.67,36.52]
[1741367386597,75.66105361,141.79,141.72,24.1287498]
[1741367386895,0.05071249,141.74,141.72,24.1287498]
[1741367387196,7.0533,141.78,141.74,7.0546]
[1741367387390,7.0533,141.78,141.72,24.1287498]
[1741367387590,19.28138314,141.8,141.72,24.1287498]
[1741367388292,0.05018729,141.77,141.75,0.05108789]
[1741367389796,36.5,141.82,141.75,0.05108789]
[1741367389997,3.877,141.84,141.75,0.05108789]
[1741367389998,7.052,141.81,141.75,0.05108789]
[1741367390184,36.5,141.83,141.72,24.1287498]
[1741367390391,3.877,141.84,141.68,24.1287498]
[1741367390392,7.0546,141.75,141.68,60.6287498]
[1741367390583,60.6287498,141.82,141.68,60.6287498]
[1741367390788,60.6287498,141.82,141.68,24.1287498]
[1741367391088,0.04964415,141.76,141.74,0.0517477]
[1741367391287,36.5,141.76,141.74,0.0517477]
[1741367391497,36.55399029,141.76,141.74,0.0517477]
[1741367391693,7.0545,141.75,141.74,0.0517477]
[1741367392692,7.0545,141.75,141.74,4.77e-05]
[1741367394696,36.55399029,141.76,141.74,4.77e-05]
[1741367395598,7.0545,141.75,141.74,4.77e-05]
[1741367396294,0.05399029,141.76,141.74,7.0546477]
[1741367396498,0.05399029,141.76,141.74,4.77e-05]
[1741367396891,0.05399029,141.76,141.74,7.0547477]
[1741367397298,0.05399029,141.76,141.75,7.0545]
[1741367397696,0.05399029,141.76,141.74,4.77e-05]
[1741367398000,7.0545,141.75,141.74,4.77e-05]
[1741367398496,7.10839029,141.76,141.74,4.77e-05]
[1741367398901,0.05399029,141.76,141.74,4.77e-05]
[1741367399093,7.0545,141.75,141.74,4.77e-05]
[1741367400002,10.9066,141.75,141.74,4.77e-05]
[1741367400292,7.0545,141.75,141.74,4.77e-05]
[1741367400692,0.05399029,141.76,141.74,4.77e-05]
[1741367401396,43.5345,141.75,141.74,4.77e-05]
[1741367404198,0.05399029,141.76,141.74,4.77e-05]
[1741367404500,75.66105361,141.84,141.75,60.6087498]
[1741367404697,75.66105361,141.84,141.8,24.1287498]
[1741367404896,66.91455361,141.84,141.8,60.6087498]
[1741367405201,64.09155361,141.84,141.83,7.0505]
[1741367405391,64.09155361,141.84,141.8,60.6087498]
[1741367405593,64.09155361,141.84,141.83,7.0505]
[1741367405790,64.09155361,141.84,141.82,0.04527431]
[1741367406804,42.75585361,141.84,141.83,31.1792498]
[1741367407194,0.05397326,141.85,141.84,7.05]
[1741367407691,0.05397326,141.85,141.82,0.04527431]
[1741367408902,7.0505,141.83,141.82,0.04527431]
[1741367409991,7.0526,141.79,141.74,24.1287498]
[1741367410202,36.46,141.83,141.71,24.1287498]
[1741367410401,36.46,141.83,141.69,36.46]
[1741367410696,7.0519,141.81,141.74,24.1287498]
[1741367410902,36.46,141.83,141.74,24.1287498]
[1741367411203,0.05142566,141.8,141.77,0.05374226]
[1741367411604,0.05142566,141.8,141.71,24.1287498]
[1741367411897,36.46,141.83,141.74,24.1287498]
[1741367412100,1.9662,141.84,141.8,24.1287498]
[1741367412291,3.7669,141.86,141.8,24.1287498]
[1741367412697,0.04680565,141.84,141.82,0.05434903]
[1741367413094,0.04680565,141.84,141.83,7.0505]
[1741367413301,0.04680565,141.84,141.82,0.05434903]
[1741367413509,0.04680565,141.84,141.74,215.1287498]
[1741367413697,2.01590565,141.84,141.74,24.1287498]
[1741367413902,1.9691,141.84,141.71,24.1287498]
[1741367414402,7.0533,141.78,141.71,24.1287498]
[1741367414604,36.46,141.82,141.71,24.1287498]
[1741367414799,0.0465145,141.76,141.73,0.04705141]
[1741367414999,36.46,141.82,141.69,248.08]
[1741367415201,0.04722242,141.76,141.73,0.04579579]
[1741367415408,0.04722242,141.76,141.69,248.08]
[1741367415610,7.0553,141.74,141.73,0.0489307]
[1741367415910,36.46,141.74,141.62,248.06]
[1741367416208,1.9357,141.73,141.67,7.0581]
[1741367416709,1.9357,141.73,141.64,24.1287498]
[1741367416908,1.9357,141.73,141.67,24.1287498]
[1741367417206,0.04943073,141.7,141.67,24.18133531]
[1741367418006,0.04943073,141.7,141.69,7.0575]
[1741367418207,0.04943073,141.7,141.67,0.05258551]
[1741367418713,0.04943073,141.7,141.67,7.11098551]
[1741367419015,0.04943073,141.7,141.67,0.05258551]
[1741367419806,7.058,141.68,141.67,0.05258551]
[1741367420006,0.04943073,141.7,141.62,24.1287498]
[1741367420204,38.4956,141.69,141.57,0.1022]
[1741367420407,38.4956,141.69,141.56,272.2687498]
[1741367420805,38.4956,141.69,141.56,279.3325498]
[1741367421005,0.05150864,141.64,141.61,0.04256733]
[1741367421213,0.05150864,141.64,141.56,24.1287498]
[1741367421610,0.05150864,141.64,141.59,24.1287498]
[1741367421910,36.46,141.72,141.62,24.1287498]
[1741367422213,3.8412,141.77,141.68,24.1287498]
[1741367422410,7.0524,141.8,141.74,7.0549]
[1741367422715,1.9019,141.81,141.74,24.1287498]
[1741367422916,0.04911837,141.78,141.74,24.1287498]
[1741367423806,0.04911837,141.78,141.77,24.1287498]
[1741367424007,114.44153691,141.82,141.77,64.1087498]
[1741367424309,114.44153691,141.82,141.77,60.5887498]
[1741367424509,114.44153691,141.82,141.77,75.55616675]
[1741367425213,0.05125003,141.81,141.78,0.04911837]
[1741367426613,0.05125003,141.81,141.79,7.052]
[1741367426814,0.05125003,141.81,141.78,250.78528512]
[1741367427009,2.0202,141.9,141.78,250.78528512]
[1741367427010,2.0202,141.9,141.78,445.30528512]
[1741367427315,2.0202,141.9,141.81,39.09616675]
[1741367427502,2.0202,141.9,141.78,250.73616675]
[1741367427707,2.0202,141.9,141.78,211.64]
[1741367428203,0.0478596,141.85,141.83,0.04536667]
[1741367428406,36.44,141.86,141.78,211.64]
[1741367428606,3.8896,141.85,141.78,211.64]
[1741367429207,42.98576675,141.85,141.7,211.64]
[1741367429402,0.05424554,141.79,141.76,0.04521806]
[1741367429605,36.44,141.81,141.7,211.64]
[1741367429814,36.44,141.81,141.67,7.0584]
[1741367430019,39.09616675,141.79,141.66,36.44]
[1741367430316,39.09616675,141.76,141.64,431.7509672]
[1741367430511,40.2663,141.75,141.64,240.7509672]
[1741367430921,0.04887325,141.71,141.64,240.7509672]
[1741367431224,7.0573,141.7,141.64,247.8108672]
[1741367431817,0.04887325,141.71,141.64,240.7509672]
[1741367432527,0.04887325,141.71,141.67,7.058]
[1741367432825,0.04887325,141.71,141.67,75.53616675]
[1741367433216,36.44,141.81,141.7,39.09616675]
[1741367433420,40.1866,141.81,141.71,36.44]
[1741367433926,1.8746,141.81,141.73,39.09616675]
[1741367434224,1.8746,141.81,141.73,250.75616675]
[1741367434523,0.04846997,141.78,141.76,0.04857118]
[1741367436916,0.04846997,141.78,141.76,7.10247118]
[1741367437119,0.04846997,141.78,141.76,0.04857118]
[1741367437425,0.04846997,141.78,141.76,36.48857118]
[1741367437619,0.04846997,141.78,141.77,7.0535]
[1741367439023,6.997e-05,141.78,141.77,7.0535]
[1741367439321,8.9009,141.88,141.77,3.52]
[1741367439518,1.8528,141.88,141.8,39.09616675]
[1741367439720,1.8528,141.88,141.85,7.0491]
[1741367439920,3.8177,141.91,141.83,39.09616675]
[1741367440124,3.8177,141.91,141.85,7.0494]
[1741367440427,0.04603157,141.88,141.86,0.04771448]
[1741367440924,7.0485,141.87,141.86,0.04771448]
[1741367441326,0.04603157,141.88,141.86,0.04771448]
[1741367442525,0.04603157,141.88,141.86,39.14388123]
[1741367442823,0.04603157,141.88,141.87,7.0485]
[1741367443225,0.04603157,141.88,141.86,0.04771448]
[1741367443525,0.04603157,141.88,141.87,7.0485]
[1741367446019,0.04603157,141.88,141.86,0.04771448]
[1741367448521,0.04603157,141.88,141.87,7.0485]
[1741367448922,0.04603157,141.88,141.86,0.04771448]
[1741367449617,0.04603157,141.88,141.86,7.09641448]
[1741367449817,0.04603157,141.88,141.86,0.04771448]
[1741367450722,7.0485,141.87,141.86,0.04771448]
[1741367450926,0.04603157,141.88,141.82,211.6]
[1741367451521,0.04603157,141.88,141.83,39.09616675]
[1741367451726,0.04603157,141.88,141.87,7.0485]
[1741367452032,0.04603157,141.88,141.84,36.38]
[1741367452229,0.04603157,141.88,141.86,0.05321675]
[1741367452422,0.04603157,141.88,141.86,7.10211675]
[1741367452826,0.04603157,141.88,141.86,0.05321675]
[1741367453832,0.04603157,141.88,141.87,7.0485]
[1741367454130,0.04603157,141.88,141.86,0.05321675]
[1741367454330,0.04603157,141.88,141.87,7.0485]
[1741367454527,0.04603157,141.88,141.86,39.1493835]
[1741367454723,0.04603157,141.88,141.86,0.05321675]
[1741367455533,0.04603157,141.88,141.87,7.0485]
[1741367456123,0.04603157,141.88,141.86,0.05321675]
[1741367456526,0.04603157,141.88,141.79,24.05322007]
[1741367456724,36.38,141.92,141.82,24.05322007]
[1741367457326,36.38,141.92,141.8,36.38]
[1741367457837,0.04979997,141.87,141.8,36.38]
[1741367458037,0.04979997,141.87,141.79,24.05322007]
[1741367458038,0.04979997,141.87,141.77,36.38]
[1741367458335,36.38,141.86,141.77,36.38]
[1741367458534,0.04944914,141.83,141.76,211.48]
[1741367459533,0.04944914,141.83,141.78,39.10635189]
[1741367459930,0.04944914,141.83,141.82,7.051]
[1741367460845,0.04944914,141.83,141.81,46.15775189]
[1741367461342,7.09994914,141.83,141.79,36.38]
[1741367461642,7.09994914,141.83,141.76,211.48]
[1741367461643,7.0511,141.82,141.76,211.48]
[1741367461836,0.04944914,141.83,141.76,250.58635189]
[1741367462245,7.0523,141.8,141.76,250.58635189]
[1741367462540,1.8724,141.82,141.76,250.58635189]
[1741367462736,0.046132,141.79,141.76,250.58635189]
[1741367463442,0.046132,141.79,141.76,211.48]
[1741367463644,0.046132,141.79,141.78,7.053]
[1741367463839,0.046132,141.79,141.76,250.58635189]
[1741367464142,0.046132,141.79,141.76,257.64015189]
[1741367464343,0.046132,141.79,141.76,250.58635189]
[1741367464642,0.046132,141.79,141.74,7.0548]
[1741367464832,7.098932,141.79,141.73,39.10635189]
[1741367465036,0.046132,141.79,141.73,39.10635189]
[1741367466040,0.046132,141.79,141.76,39.10635189]
[1741367466245,0.046132,141.79,141.78,7.053]
[1741367466445,0.046132,141.79,141.77,36.38]
[1741367466942,0.046132,141.79,141.74,36.38]
[1741367467932,0.046132,141.79,141.76,39.10635189]
[1741367468138,0.046132,141.79,141.78,7.053]
[1741367468346,0.046132,141.79,141.76,39.10635189]
[1741367469238,0.046132,141.79,141.78,7.053]
[1741367469445,0.046132,141.79,141.78,43.433]
[1741367469644,0.046132,141.79,141.78,36.38]
[1741367469845,0.046132,141.79,141.76,7.0537]
[1741367470037,0.046132,141.79,141.75,75.48635189]
[1741367470342,0.046132,141.79,141.75,36.38]
[1741367470531,0.046132,141.79,141.7,402.52]
[1741367470736,7.0538,141.77,141.73,7.0552]
[1741367470939,0.0543094,141.76,141.73,7.0552]
[1741367471135,0.0543094,141.76,141.74,7.0547]
[1741367471338,0.0543094,141.76,141.71,36.36]
[1741367471538,0.0543094,141.76,141.7,211.52]
[1741367471746,0.0543094,141.76,141.7,247.88]
[1741367471937,7.0553,141.74,141.7,247.88]
[1741367472136,0.0543094,141.76,141.66,36.36]
[1741367472438,39.10635189,141.74,141.62,68.14660505]
[1741367472637,39.10635189,141.74,141.62,39.10635189]
[1741367472638,0.04908332,141.72,141.62,39.10635189]
[1741367472844,36.36,141.71,141.62,39.10635189]
[1741367473035,7.0583,141.68,141.62,39.10635189]
[1741367473233,0.05010161,141.68,141.62,39.10635189]
[1741367474145,36.36,141.67,141.59,68.14660505]
[1741367474546,7.0606,141.63,141.59,29.04025316]
[1741367474839,36.38,141.63,141.59,19.84155316]
[1741367476642,36.38,141.62,141.59,19.84155316]
[1741367476843,75.48635189,141.62,141.58,0.00657511]
[1741367477031,39.10635189,141.59,141.58,0.00657511]
[1741367477233,75.48635189,141.62,141.58,0.00657511]
[1741367477441,7.0625,141.59,141.58,0.00657511]
[1741367477947,10.6025,141.59,141.58,0.00657511]
[1741367478448,7.063,141.58,141.57,80.08971601]
[1741367478839,10.603,141.58,141.57,80.08971601]
[1741367479142,0.0447174,141.6,141.57,80.08971601]
[1741367479448,7.063,141.58,141.57,80.08971601]
[1741367479838,36.38,141.59,141.51,39.10635189]
[1741367480038,36.38,141.59,141.49,1.9732]
[1741367480341,7.0646,141.55,141.49,1.9732]
[1741367480543,0.04833013,141.56,141.51,24.14668846]
[1741367480746,0.04833013,141.56,141.52,3.9341]
[1741367481952,7.0649,141.55,141.52,3.9341]
[1741367482146,0.04833013,141.56,141.52,3.9341]
[1741367482949,0.04833013,141.56,141.52,40.3341]
[1741367483549,7.0646,141.55,141.52,3.9341]
[1741367483847,0.04833013,141.56,141.52,3.9341]
[1741367484450,0.04833013,141.56,141.49,1.9732]
[1741367484650,0.04833013,141.56,141.47,24.14668846]
[1741367484651,36.4,141.55,141.47,28.04558846]
[1741367485047,0.04676865,141.52,141.47,28.04558846]
[1741367485554,36.4,141.59,141.5,24.14668846]
[1741367485744,24.14668846,141.65,141.5,24.14668846]
[1741367486050,24.14668846,141.65,141.48,36.4]
[1741367486051,193.0,141.66,141.53,24.14668846]
[1741367486354,36.4,141.64,141.53,60.54668846]
[1741367486750,7.0629,141.59,141.58,0.045573]
[1741367486951,0.05057923,141.61,141.58,0.045573]
[1741367488455,7.11237923,141.61,141.58,0.045573]
[1741367488659,0.05057923,141.61,141.58,0.045573]
[1741367488957,0.05057923,141.61,141.59,7.0621]
[1741367489152,0.05057923,141.61,141.58,0.045573]
[1741367489657,7.062,141.6,141.58,0.045573]
[1741367490154,0.05057923,141.61,141.58,0.045573]
[1741367490749,0.05057923,141.61,141.48,3.8822]
[1741367490950,0.05057923,141.61,141.49,24.14668846]
[1741367491156,7.0633,141.58,141.53,7.065]
[1741367491350,24.14668846,141.63,141.49,24.14668846]
[1741367491351,36.4,141.59,141.49,24.14668846]
[1741367491550,36.4,141.59,141.48,5.8492]
[1741367492061,0.05431393,141.55,141.48,5.8492]
[1741367492860,0.05431393,141.55,141.5,7.0668]
[1741367492861,7.065,141.54,141.5,7.0668]
[1741367493161,0.05431393,141.55,141.48,5.8492]
[1741367493964,0.05431393,141.55,141.5,24.14668846]
[1741367494154,0.05431393,141.55,141.51,36.4]
[1741367494460,193.0,141.67,141.53,24.14668846]
[1741367494461,36.4,141.61,141.53,24.14668846]
[1741367494963,36.4,141.61,141.51,36.4]
[1741367495555,0.04968089,141.57,141.55,7.11150984]
[1741367495858,36.38,141.62,141.53,24.14668846]
[1741367496159,76.51532103,141.69,141.61,7.0614]
[1741367496461,76.51532103,141.69,141.59,24.14668846]
[1741367496661,76.51532103,141.69,141.6,1.9542]
[1741367496865,76.51532103,141.69,141.62,24.14668846]
[1741367497060,76.51532103,141.69,141.61,24.14668846]
[1741367497259,76.51532103,141.69,141.6,1.9542]
[1741367497260,0.04840672,141.67,141.64,0.04840709]
[1741367499465,0.04840672,141.67,141.65,7.0594]
[1741367499664,0.04840672,141.67,141.64,0.04840709]
[1741367499965,0.04840672,141.67,141.66,7.059]
[1741367500167,0.04840672,141.67,141.64,0.04840709]
[1741367501061,36.38,141.72,141.64,0.04840709]
[1741367501259,36.38,141.72,141.64,24.19509555]
[1741367501662,7.0556,141.73,141.64,24.19509555]
[1741367501852,36.38,141.74,141.64,24.14668846]
[1741367502260,0.05070298,141.7,141.69,7.0575]
[1741367502459,7.0553,141.74,141.68,0.05433678]
[1741367502665,36.36,141.77,141.68,0.05433678]
[1741367502865,7.055,141.75,141.7,7.0566]
[1741367503162,36.36,141.77,141.68,3.9008]
[1741367503566,7.0558,141.73,141.71,0.04855018]
[1741367504067,0.05049478,141.74,141.71,0.04855018]
[1741367504262,76.51532103,141.79,141.73,24.14668846]
[1741367504458,76.51532103,141.79,141.76,7.054]
[1741367504862,76.51532103,141.79,141.76,36.36]
[1741367505169,73.45292103,141.8,141.77,1.9074]
[1741367505566,0.04472635,141.79,141.77,1.9074]
[1741367507569,70.39122103,141.8,141.77,1.9074]
[1741367507768,205.6544778,141.88,141.77,1.9074]
[1741367507963,205.5585778,141.88,141.77,1.9074]
[1741367508562,7.0524,141.8,141.77,1.9074]